[Event "12th KIIT International 2019"]
[Site "Odisha"]
[Date "2019.06.05"]
[Round "8.7"]
[White "Ter-Sahakyan, Samvel"]
[Black "Mohammad Fahad, Rahman"]
[Result "1-0"]
[ECO "C92"]
[WhiteElo "2611"]
[BlackElo "2305"]
[Annotator "RC"]
[PlyCount "57"]
[EventDate "2019.05.31"]
[EventType "swiss"]
[EventCountry "IND"]
[SourceTitle "playchess.com"]
[Source "ChessBase"]
[SourceQuality "1"]
[TimeControl "5400+30"]

1. e4 {[%emt 0:00:00]} e5 {[%emt 0:00:00]} 2. Nf3 {[%emt 0:00:00]} Nc6 {[%emt 0:00:00]} 3. Bb5 {[%emt 0:00:00]} a6 {[%emt 0:00:02]} 4. Ba4 {[%emt 0:00:00]} Nf6 {[%emt 0:00:09]} 5. O-O {[%emt 0:00:53]} Be7 {[%emt 0:00:20]} 6. Re1 {[%emt 0:00:09]} b5 {[%emt 0:00:13]} 7. Bb3 {[%emt 0:00:05]} d6 {[%emt 0:00:13]} 8. c3 {[%emt 0:00:08]} O-O {[%emt 0:00:12]} 9. h3 {[%emt 0:00:08]} Bb7 {[%emt 0:00:49]} 10. d4 {[%emt 0:00:33]} Re8 {[%emt 0:00:25]} 11. Nbd2 {[%emt 0:00:19]} Bf8 {[%emt 0:00:30]} 12. a4 {[%emt 0:01:08]} h6 {[%emt 0:00:52]} 13. Bc2 {[%emt 0:00:12]} exd4 {[%emt 0:02:42]} 14. cxd4 {[%emt 0:00:06]} Nb4 {[%emt 0:00:23]} 15. Bb1 {[%emt 0:00:05]} c5 {[%emt 0:00:47]} 16. d5 {[%emt 0:00:08]} Nd7 {[%emt 0:01:15]} 17. Ra3 {[%emt 0:01:42]} c4 {[%emt 0:03:25]} 18. Ree3 {[%emt 0:00:46]} Nc5 {[%emt 0:04:50]} 19. b3 {[%emt 0:02:52]} cxb3 {[%emt 0:12:01]} 20. Nxb3 {[%emt 0:10:14]} Nxa4 {[%emt 0:10:41]} 21. Nbd4 {[%emt 0:01:17]} Qb6 {[%emt 0:06:06]} 22. Nh4 {[%emt 0:09:26]} Rac8 {[%emt 0:23:57]} 23. Ndf5 {[%emt 0:03:00]} g6 {[%emt 0:08:23]} 24. Rg3 {[%emt 0:02:16]} Kh7 {[%emt 0:00:48]} 25. Bxh6 {[%emt 0:20:13]} Bxh6 {[%emt 0:01:15]} 26. Nxh6 {[%emt 0:00:06]} Kxh6 {[%emt 0:07:23]} 27. Nf5+ {[%emt 0:03:03]} Kh7 {[%emt 0:01:59]} 28. Qd2 {[%emt 0:00:06]} gxf5 {[%emt 0:02:39]} 29. Qg5 {[%emt 0:00:24]} 1-0

[Event "12th KIIT International 2019"]
[Site "Odisha"]
[Date "2019.06.05"]
[Round "8.11"]
[White "Ziatdinov, Raset"]
[Black "Nguyen, Van Huy"]
[Result "0-1"]
[ECO "B19"]
[WhiteElo "2249"]
[BlackElo "2456"]
[Annotator "RC"]
[PlyCount "119"]
[EventDate "2019.05.31"]
[EventType "swiss"]
[EventCountry "IND"]
[SourceTitle "playchess.com"]
[Source "ChessBase"]
[SourceQuality "1"]
[TimeControl "5400+30"]

1. e4 {[%emt 0:00:00]} c6 {[%emt 0:00:00]} 2. d4 {[%emt 0:00:00]} d5 {[%emt 0:00:00]} 3. Nc3 {[%emt 0:00:00]} dxe4 {[%emt 0:00:10]} 4. Nxe4 {[%emt 0:00:00]} Bf5 {[%emt 0:00:08]} 5. Ng3 {[%emt 0:00:00]} Bg6 {[%emt 0:00:07]} 6. h4 {[%emt 0:00:00]} h6 {[%emt 0:00:10]} 7. Nf3 {[%emt 0:00:00]} Nd7 {[%emt 0:00:18]} 8. h5 {[%emt 0:00:05]} Bh7 {[%emt 0:00:04]} 9. Bd3 {[%emt 0:00:04]} Bxd3 {[%emt 0:00:06]} 10. Qxd3 {[%emt 0:00:02]} e6 {[%emt 0:00:21]} 11. Bd2 {[%emt 0:00:07]} Ngf6 {[%emt 0:00:09]} 12. O-O-O {[%emt 0:00:08]} Be7 {[%emt 0:00:12]} 13. Kb1 {[%emt 0:00:19]} Qb6 {[%emt 0:01:34]} 14. Rhe1 {[%emt 0:00:18]} O-O {[%emt 0:01:40]} 15. Nf5 {[%emt 0:03:45]} exf5 {[%emt 0:02:32]} 16. Rxe7 {[%emt 0:00:07]} Qd8 {[%emt 0:01:02]} 17. Re2 {[%emt 0:01:38]} Ne4 {[%emt 0:00:41]} 18. Qb3 {[%emt 0:08:20]} b5 {[%emt 0:08:10]} 19. c4 {[%emt 0:03:47]} bxc4 {[%emt 0:06:12]} 20. Qxc4 {[%emt 0:00:02]} Rc8 {[%emt 0:01:36]} 21. Qa6 {[%emt 0:18:35]} Ndf6 {[%emt 0:07:35]} 22. Bb4 {[%emt 0:14:34]} c5 {[%emt 0:06:30]} 23. Ba3 {[%emt 0:03:12]} Re8 {[%emt 0:01:45]} 24. Rc2 {[%emt 0:04:56]} c4 {[%emt 0:12:24]} 25. d5 {[%emt 0:11:00]} Nxd5 {[%emt 0:05:00]} 26. Rd4 {[%emt 0:00:13]} Qb6 {[%emt 0:01:06]} 27. Qxb6 {[%emt 0:00:57]} Nxb6 {[%emt 0:00:08]} 28. Nh4 {[%emt 0:00:46]} c3 {[%emt 0:02:16]} 29. bxc3 {[%emt 0:07:03]} Nxc3+ {[%emt 0:03:14]} 30. Ka1 {[%emt 0:01:26]} Nb5 {[%emt 0:06:18]} 31. Rxc8 {[%emt 0:00:22]} Rxc8 {[%emt 0:00:12]} 32. Rd3 {[%emt 0:00:04]} Rc2 {[%emt 0:01:26]} 33. Kb1 {[%emt 0:06:13]} Rxf2 {[%emt 0:01:17]} 34. Bc5 {[%emt 0:00:06]} Rf1+ {[%emt 0:08:11]} 35. Kc2 {[%emt 0:00:07]} Rf4 {[%emt 0:00:16]} 36. Ng6 {[%emt 0:03:20]} Rc4+ {[%emt 0:02:32]} 37. Kb3 {[%emt 0:02:07]} fxg6 {[%emt 0:02:03]} 38. hxg6 {[%emt 0:00:02]} Rc3+ {[%emt 0:02:39]} 39. Rxc3 {[%emt 0:00:29]} Nxc3 {[%emt 0:00:04]} 40. Kxc3 {[%emt 0:04:20]} Na4+ {[%emt 0:01:33]} 41. Kc4 {[%emt 0:00:38]} Nxc5 {[%emt 0:00:02]} 42. Kxc5 {[%emt 0:00:19]} Kf8 {[%emt 0:02:31]} 43. Kd6 {[%emt 0:00:12]} f4 {[%emt 0:02:51]} 44. a4 {[%emt 0:01:25]} a5 {[%emt 0:02:56]} 45. Ke6 {[%emt 0:00:40]} Ke8 {[%emt 0:01:54]} 46. Kd6 {[%emt 0:00:08]} Kf8 {[%emt 0:01:39]} 47. Ke6 {[%emt 0:00:07]} h5 {[%emt 0:00:43]} 48. Kf5 {[%emt 0:01:10]} Ke7 {[%emt 0:00:23]} 49. Kg5 {[%emt 0:00:16]} Ke6 {[%emt 0:00:26]} 50. Kxh5 {[%emt 0:03:01]} Kf5 {[%emt 0:00:29]} 51. Kh4 {[%emt 0:00:37]} f3 {[%emt 0:00:26]} 52. gxf3 {[%emt 0:00:52]} Kf4 {[%emt 0:00:03]} 53. Kh5 {[%emt 0:03:08]} Kxf3 {[%emt 0:00:10]} 54. Kg5 {[%emt 0:00:03]} Ke4 {[%emt 0:00:04]} 55. Kg4 {[%emt 0:00:17]} Ke5 {[%emt 0:00:04]} 56. Kf3 {[%emt 0:00:43]} Kf5 {[%emt 0:00:05]} 57. Ke3 {[%emt 0:00:04]} Kxg6 {[%emt 0:00:14]} 58. Kd4 {[%emt 0:00:05]} Kf5 {[%emt 0:00:10]} 59. Kc5 {[%emt 0:00:10]} g5 {[%emt 0:00:06]} 60. Kd4 {[%emt 0:01:04] Ke5+ [%clk 0:12:33]} 0-1

[Event "12th KIIT International 2019"]
[Site "Odisha"]
[Date "2019.06.05"]
[Round "8.18"]
[White "Panta, Sumit"]
[Black "Roy, Prantik"]
[Result "0-1"]
[ECO "B11"]
[WhiteElo "1999"]
[BlackElo "2365"]
[Annotator "RC"]
[PlyCount "122"]
[EventDate "2019.05.31"]
[EventType "swiss"]
[EventCountry "IND"]
[SourceTitle "playchess.com"]
[Source "ChessBase"]
[SourceQuality "1"]
[TimeControl "5400+30"]

1. e4 {[%emt 0:00:00]} c6 {[%emt 0:00:00]} 2. Nf3 {[%emt 0:00:31]} d5 {[%emt 0:00:00]} 3. Nc3 {[%emt 0:00:38]} Bg4 {[%emt 0:01:04]} 4. h3 {[%emt 0:09:36]} Bxf3 {[%emt 0:00:16]} 5. Qxf3 {[%emt 0:00:23]} e6 {[%emt 0:00:20]} 6. exd5 {[%emt 0:01:22]} cxd5 {[%emt 0:01:12]} 7. Bb5+ {[%emt 0:03:15]} Nc6 {[%emt 0:01:06]} 8. O-O {[%emt 0:00:14]} Nf6 {[%emt 0:02:12]} 9. Ne2 {[%emt 0:03:01]} Be7 {[%emt 0:04:50]} 10. d4 {[%emt 0:00:47]} a6 {[%emt 0:04:04]} 11. Ba4 {[%emt 0:02:31]} b5 {[%emt 0:02:28]} 12. Bb3 {[%emt 0:00:02]} Na5 {[%emt 0:01:47]} 13. c3 {[%emt 0:06:30]} Nxb3 {[%emt 0:00:38]} 14. axb3 {[%emt 0:00:02]} O-O {[%emt 0:00:28]} 15. Nf4 {[%emt 0:00:50]} Qb6 {[%emt 0:05:44]} 16. Be3 {[%emt 0:05:26]} Rfc8 {[%emt 0:05:20]} 17. Rfc1 {[%emt 0:00:31]} Bd6 {[%emt 0:03:45]} 18. Nd3 Ne4 {[%emt 0:00:40]} 19. b4 {[%emt 0:09:07]} a5 {[%emt 0:05:50]} 20. bxa5 {[%emt 0:06:45]} Rxa5 {[%emt 0:00:10]} 21. Rxa5 {[%emt 0:01:42]} Qxa5 {[%emt 0:00:06]} 22. b4 {[%emt 0:02:49]} Qa2 {[%emt 0:04:08]} 23. Nc5 {[%emt 0:00:21]} Bxc5 {[%emt 0:01:02]} 24. dxc5 {[%emt 0:04:01]} Qb2 {[%emt 0:06:04]} 25. Bf4 {[%emt 0:08:06]} Ra8 {[%emt 0:09:02]} 26. Qe3 {[%emt 0:01:52]} f6 {[%emt 0:05:51]} 27. Qd4 {[%emt 0:07:03]} g5 {[%emt 0:08:18]} 28. Be3 {[%emt 0:02:02]} Kf7 {[%emt 0:00:25]} 29. c6 {[%emt 0:10:10]} Qa2 {[%emt 0:02:22]} 30. Qb6 {[%emt 0:01:27]} Qa6 {[%emt 0:01:17]} 31. Qc7+ {[%emt 0:02:14]} Kg6 {[%emt 0:00:10]} 32. Qd7 {[%emt 0:00:24]} Rc8 {[%emt 0:08:24]} 33. f3 {[%emt 0:01:50]} Ng3 {[%emt 0:00:27]} 34. Kh2 {[%emt 0:00:32]} Nf5 {[%emt 0:02:59]} 35. Bb6 {[%emt 0:02:50]} Ne7 {[%emt 0:02:32]} 36. Qxe7 {[%emt 0:00:59]} Qxb6 {[%emt 0:00:05]} 37. Qxe6 {[%emt 0:00:23]} Qxc6 {[%emt 0:00:25]} 38. Qe3 {[%emt 0:03:47]} Qc4 {[%emt 0:03:15]} 39. Rd1 {[%emt 0:00:35]} Kf7 {[%emt 0:01:33]} 40. Rd4 {[%emt 0:00:38]} Qc7+ {[%emt 0:01:40]} 41. Kh1 {[%emt 0:00:02]} Re8 {[%emt 0:00:57]} 42. Qc1 {[%emt 0:00:51]} Qg3 {[%emt 0:00:37]} 43. Rd1 {[%emt 0:00:04]} Re2 {[%emt 0:00:46]} 44. Rg1 {[%emt 0:00:06]} Qe5 {[%emt 0:01:40]} 45. Qa1 {[%emt 0:01:16]} h5 {[%emt 0:02:04]} 46. Qa7+ {[%emt 0:01:05]} Kg6 {[%emt 0:00:13]} 47. Qa8 {[%emt 0:00:28]} Qe6 {[%emt 0:00:43]} 48. Qb7 {[%emt 0:00:57]} g4 {[%emt 0:01:17]} 49. fxg4 {[%emt 0:00:46]} hxg4 50. Qxb5 {[%emt 0:00:25]} Qe4 {[%emt 0:00:44]} 51. Qb8 {[%emt 0:01:16]} f5 {[%emt 0:01:25]} 52. Qg8+ {[%emt 0:00:31]} Kh6 {[%emt 0:00:19]} 53. hxg4 {[%emt 0:00:48]} fxg4 {[%emt 0:00:15]} 54. Qh8+ {[%emt 0:00:14]} Kg5 {[%emt 0:00:25]} 55. Qg7+ {[%emt 0:00:12]} Kf4 {[%emt 0:00:48]} 56. Qh6+ {[%emt 0:00:26]} Kg3 {[%emt 0:00:42]} 57. Qh2+ {[%emt 0:01:23]} Kf2 {[%emt 0:00:02]} 58. Rf1+ {[%emt 0:00:43]} Ke3 {[%emt 0:00:12]} 59. Qg1+ {[%emt 0:00:38]} Kd3 {[%emt 0:01:09]} 60. Rd1+ {[%emt 0:00:32]} Kc2 {[%emt 0:01:00]} 61. Rc1+ {[%emt 0:00:33]} Kb2 {[%emt 0:00:09]} 0-1

[Event "12th KIIT International 2019"]
[Site "Odisha"]
[Date "2019.06.06"]
[Round "9.3"]
[White "Amonatov, Farrukh"]
[Black "Gusain, Himal"]
[Result "1-0"]
[ECO "B09"]
[WhiteElo "2624"]
[BlackElo "2404"]
[Annotator "ChessBase"]
[PlyCount "89"]
[EventDate "2019.05.31"]
[EventType "swiss"]
[EventCountry "IND"]
[TimeControl "5400+30"]

1. e4 {[%emt 0:00:00]} d6 {[%emt 0:03:13]} 2. d4 {[%emt 0:00:00]} Nf6 {[%emt 0:00:07]} 3. Nc3 {[%emt 0:00:00]} g6 {[%emt 0:00:07]} 4. f4 {[%emt 0:00:00]} Bg7 {[%emt 0:00:06]} 5. Nf3 {[%emt 0:00:00]} c6 {[%emt 0:04:09]} 6. Bd3 {[%emt 0:00:01]} Nbd7 {[%emt 0:02:40]} 7. e5 {[%emt 0:01:53]} Nd5 {[%emt 0:00:23]} 8. Nxd5 {[%emt 0:00:34]} cxd5 {[%emt 0:00:10]} 9. O-O {[%emt 0:00:05]} Nb6 {[%emt 0:05:40]} 10. c3 {[%emt 0:09:58]} O-O {[%emt 0:07:41]} 11. Qe1 {[%emt 0:01:55]} dxe5 {[%emt 0:01:24]} 12. fxe5 {[%emt 0:00:19]} f6 {[%emt 0:00:05]} 13. Bf4 {[%emt 0:02:27]} Bg4 {[%emt 0:02:29]} 14. Nd2 {[%emt 0:15:10]} Qd7 {[%emt 0:05:01]} 15. h3 {[%emt 0:02:01]} Be6 {[%emt 0:00:26]} 16. Qe2 {[%emt 0:00:22]} a6 {[%emt 0:00:48]} 17. b3 {[%emt 0:10:42]} Rac8 {[%emt 0:06:53]} 18. Rac1 {[%emt 0:01:59]} Na8 {[%emt 0:07:12]} 19. a4 {[%emt 0:02:54]} Nc7 {[%emt 0:01:37]} 20. Rce1 {[%emt 0:03:53]} Bf7 {[%emt 0:02:09]} 21. Nf3 {[%emt 0:00:21]} Ne6 {[%emt 0:03:18]} 22. Bd2 {[%emt 0:01:32]} Rfe8 {[%emt 0:02:25]} 23. h4 {[%emt 0:02:59]} h5 {[%emt 0:43:27]} 24. Ng5 fxg5 25. Rxf7 Kxf7 26. Qf3+ Bf6 27. hxg5 Qd8 28. Rf1 Nf8 29. gxf6 exf6 30. Bg5 Kg8 {[%emt 0:00:00]} 31. Bxf6 Qd7 {[%emt 0:00:00]} 32. Bc2 b5 {[%emt 0:00:00]} 33. axb5 axb5 {[%emt 0:00:00]} 34. b4 Qc6 {[%emt 0:00:00]} 35. Bxg6 Nxg6 {[%emt 0:00:00]} 36. Qxh5 Kf7 {[%emt 0:00:00]} 37. Bg5+ Kg8 {[%emt 0:00:00]} 38. Rf6 Qxf6 {[%emt 0:00:00]} 39. Bxf6 Nf8 {[%emt 0:00:00]} 40. Qf3 Re6 {[%emt 0:00:00]} 41. Qxd5 Rxc3 {[%emt 0:00:00]} 42. Qxb5 Rc1+ {[%emt 0:00:00]} 43. Kh2 Rec6 {[%emt 0:00:00]} 44. Qd5+ Re6 {[%emt 0:00:00]} 45. Qb7 1-0

[Event "12th KIIT International 2019"]
[Site "Odisha"]
[Date "2019.06.06"]
[Round "9.6"]
[White "Debashis, Das"]
[Black "Laxman, R.R."]
[Result "1/2-1/2"]
[ECO "D38"]
[WhiteElo "2544"]
[BlackElo "2437"]
[Annotator "RC"]
[PlyCount "134"]
[EventDate "2019.05.31"]
[EventType "swiss"]
[EventCountry "IND"]
[SourceTitle "playchess.com"]
[Source "ChessBase"]
[SourceQuality "1"]
[TimeControl "5400+30"]

1. Nf3 {[%emt 0:00:00]} Nf6 {[%emt 0:00:00]} 2. c4 {[%emt 0:00:02]} e6 {[%emt 0:00:00]} 3. Nc3 {[%emt 0:00:03]} d5 {[%emt 0:00:31]} 4. d4 {[%emt 0:00:04]} Bb4 {[%emt 0:00:05]} 5. Qa4+ {[%emt 0:00:03]} Nc6 {[%emt 0:00:08]} 6. e3 {[%emt 0:00:04]} O-O {[%emt 0:00:24]} 7. Qc2 {[%emt 0:00:05]} b6 {[%emt 0:01:15]} 8. Bd2 {[%emt 0:00:13]} Ba6 {[%emt 0:03:18]} 9. Qa4 {[%emt 0:00:08]} Bb7 {[%emt 0:01:06]} 10. cxd5 {[%emt 0:00:07]} exd5 {[%emt 0:01:13]} 11. Bb5 {[%emt 0:03:12]} Qd6 {[%emt 0:01:56]} 12. Rc1 {[%emt 0:07:03]} Ne7 {[%emt 0:03:26]} 13. O-O {[%emt 0:06:35]} c5 {[%emt 0:03:00]} 14. Be2 {[%emt 0:07:49]} a6 {[%emt 0:03:01]} 15. dxc5 {[%emt 0:01:10]} bxc5 {[%emt 0:01:14]} 16. Rfd1 {[%emt 0:03:48]} Rfc8 {[%emt 0:07:44]} 17. Be1 {[%emt 0:13:14]} Qe6 {[%emt 0:01:41]} 18. Qc2 {[%emt 0:05:06]} Nf5 {[%emt 0:20:11]} 19. Na4 {[%emt 0:23:54]} Bxe1 {[%emt 0:03:12]} 20. Rxe1 {[%emt 0:00:04]} Ne4 {[%emt 0:01:05]} 21. Nd2 {[%emt 0:08:37]} Nxf2 {[%emt 0:20:22]} 22. Kxf2 {[%emt 0:02:47]} Qxe3+ {[%emt 0:00:05]} 23. Kf1 {[%emt 0:00:02]} Nd4 {[%emt 0:00:11]} 24. Qd1 {[%emt 0:01:17]} Bc6 {[%emt 0:00:21]} 25. Nxc5 {[%emt 0:11:11]} Nxe2 {[%emt 0:00:48]} 26. Rxe2 {[%emt 0:00:18]} Bb5 {[%emt 0:00:10]} 27. a4 {[%emt 0:01:16]} Qf4+ {[%emt 0:04:22]} 28. Nf3 {[%emt 0:01:36]} Bxe2+ {[%emt 0:00:50]} 29. Kxe2 {[%emt 0:00:03]} Rc6 {[%emt 0:03:12]} 30. Nd3 {[%emt 0:01:28]} Re8+ {[%emt 0:02:50]} 31. Kf1 {[%emt 0:00:28]} Rxc1 {[%emt 0:00:02]} 32. Nxc1 {[%emt 0:00:17]} Qc4+ {[%emt 0:00:10]} 33. Kf2 {[%emt 0:01:24]} Re4 {[%emt 0:01:02]} 34. b3 {[%emt 0:00:44]} Qc5+ {[%emt 0:00:28]} 35. Kf1 {[%emt 0:00:10]} h6 {[%emt 0:00:19]} 36. Ne2 {[%emt 0:01:09]} a5 {[%emt 0:01:00]} 37. Qd2 {[%emt 0:00:14]} Rb4 {[%emt 0:00:24]} 38. Ned4 {[%emt 0:00:44]} g6 {[%emt 0:01:01]} 39. Qe3 {[%emt 0:00:19]} Kh7 {[%emt 0:01:22]} 40. h4 {[%emt 0:00:33]} Rb7 {[%emt 0:00:36]} 41. h5 {[%emt 0:00:49]} Re7 {[%emt 0:00:18]} 42. Qf4 {[%emt 0:01:02]} Kg7 {[%emt 0:00:10]} 43. hxg6 {[%emt 0:00:18]} fxg6 {[%emt 0:00:02]} 44. Qd2 {[%emt 0:00:24]} Kh7 {[%emt 0:01:00]} 45. Nb5 {[%emt 0:00:57]} Re4 {[%emt 0:02:46]} 46. Nbd4 {[%emt 0:00:25]} g5 {[%emt 0:00:26]} 47. Ne2 {[%emt 0:00:29]} g4 {[%emt 0:00:51]} 48. Nfd4 {[%emt 0:00:04]} Qf8+ {[%emt 0:01:25]} 49. Kg1 {[%emt 0:00:25]} Qc5 {[%emt 0:00:30]} 50. Kf2 {[%emt 0:00:43]} Qf8+ {[%emt 0:00:14]} 51. Ke1 {[%emt 0:00:10]} Qc5 {[%emt 0:01:46]} 52. Kd1 {[%emt 0:00:23]} Qb6 {[%emt 0:03:29]} 53. Qc3 {[%emt 0:00:27]} Qf6 {[%emt 0:00:47]} 54. Ke1 {[%emt 0:00:57]} h5 {[%emt 0:01:22]} 55. g3 {[%emt 0:00:35]} h4 {[%emt 0:00:35]} 56. gxh4 {[%emt 0:00:22]} Qxh4+ {[%emt 0:02:07]} 57. Kd1 {[%emt 0:01:01]} Qf6 {[%emt 0:00:31]} 58. Kd2 {[%emt 0:00:31]} Qg5+ {[%emt 0:01:00]} 59. Kd1 {[%emt 0:00:26]} Qe5 {[%emt 0:00:39]} 60. Ke1 {[%emt 0:00:46]} Kg6 {[%emt 0:02:42]} 61. Kf1 {[%emt 0:00:21]} g3 {[%emt 0:01:01]} 62. Kg2 {[%emt 0:01:01]} Rxe2+ {[%emt 0:00:14]} 63. Nxe2 {[%emt 0:00:03]} Qxe2+ {[%emt 0:00:03]} 64. Kxg3 {[%emt 0:00:03]} Kf5 {[%emt 0:02:13]} 65. Qxa5 {[%emt 0:00:38]} Qe3+ {[%emt 0:00:11]} 66. Kg2 {[%emt 0:00:06]} Qxb3 {[%emt 0:00:07]} 67. Qd2 {[%emt 0:00:42]} Qxa4 {[%emt 0:00:21]} 1/2-1/2

[Event "12th KIIT International 2019"]
[Site "Odisha"]
[Date "2019.06.06"]
[Round "9.7"]
[White "Roy, Prantik"]
[Black "Burmakin, Vladimir"]
[Result "1/2-1/2"]
[ECO "D02"]
[WhiteElo "2365"]
[BlackElo "2526"]
[Annotator "ChessBase"]
[PlyCount "61"]
[EventDate "2019.05.31"]
[EventType "swiss"]
[EventCountry "IND"]
[TimeControl "5400+30"]

1. d4 {[%emt 0:00:00]} Nf6 {[%emt 0:00:00]} 2. Nf3 {[%emt 0:00:00]} d5 {[%emt 0:00:18]} 3. Bf4 {[%emt 0:00:40]} c6 {[%emt 0:00:29]} 4. Nbd2 {[%emt 0:00:41]} Qb6 {[%emt 0:00:35]} 5. Rb1 {[%emt 0:01:34]} Bf5 {[%emt 0:00:14]} 6. e3 {[%emt 0:00:46]} Nbd7 {[%emt 0:01:30]} 7. Bd3 {[%emt 0:01:03]} Bxd3 {[%emt 0:02:08]} 8. cxd3 {[%emt 0:00:05]} e6 {[%emt 0:10:09]} 9. O-O {[%emt 0:02:51]} Be7 {[%emt 0:01:06]} 10. b4 {[%emt 0:03:02]} O-O {[%emt 0:00:25]} 11. h3 {[%emt 0:08:25]} Rfc8 {[%emt 0:00:50]} 12. Qb3 {[%emt 0:01:57]} Qd8 {[%emt 0:01:00]} 13. Rfc1 {[%emt 0:01:06]} b6 {[%emt 0:05:24]} 14. Ne5 {[%emt 0:05:10]} Nxe5 {[%emt 0:00:13]} 15. Bxe5 {[%emt 0:00:14]} Nd7 {[%emt 0:00:21]} 16. Bg3 {[%emt 0:03:27]} a5 {[%emt 0:04:31]} 17. bxa5 {[%emt 0:06:26]} Rxa5 {[%emt 0:01:18]} 18. a4 {[%emt 0:00:07]} c5 {[%emt 0:06:28]} 19. Nf3 {[%emt 0:06:49]} Rca8 {[%emt 0:09:07]} 20. Ne5 {[%emt 0:02:09]} Nxe5 {[%emt 0:01:13]} 21. Bxe5 {[%emt 0:00:35]} f6 {[%emt 0:06:35]} 22. Bg3 {[%emt 0:01:34]} Rxa4 {[%emt 0:04:30]} 23. Qxb6 {[%emt 0:00:16]} Qxb6 {[%emt 0:00:42]} 24. Rxb6 {[%emt 0:00:05]} Ra1 {[%emt 0:01:17]} 25. Rxa1 {[%emt 0:05:36]} Rxa1+ {[%emt 0:00:04]} 26. Kh2 {[%emt 0:00:04]} cxd4 {[%emt 0:00:51]} 27. exd4 {[%emt 0:03:53]} Re1 {[%emt 0:02:52]} 28. Rb8+ {[%emt 0:00:47]} Kf7 {[%emt 0:01:14]} 29. Rb7 {[%emt 0:00:09]} Ke8 {[%emt 0:05:16]} 30. Rb8+ {[%emt 0:00:15]} Kf7 {[%emt 0:00:36]} 31. Rb7 {[%emt 0:00:10]} 1/2-1/2

[Event "12th KIIT International 2019"]
[Site "Odisha"]
[Date "2019.06.06"]
[Round "9.15"]
[White "Rakesh Kumar Jena"]
[Black "Baivab Mishra"]
[Result "1/2-1/2"]
[ECO "D02"]
[WhiteElo "2411"]
[BlackElo "2209"]
[Annotator "RC"]
[PlyCount "50"]
[EventDate "2019.05.31"]
[EventType "swiss"]
[EventCountry "IND"]
[SourceTitle "playchess.com"]
[Source "ChessBase"]
[SourceQuality "1"]
[TimeControl "5400+30"]

1. d4 {[%emt 0:00:10]} d5 {[%emt 0:00:43]} 2. Nf3 {[%emt 0:00:20]} Nf6 {[%emt 0:03:36]} 3. Bf4 {[%emt 0:00:29]} c6 {[%emt 0:02:28]} 4. Nbd2 {[%emt 0:00:53]} g6 {[%emt 0:02:42]} 5. e3 {[%emt 0:00:43]} Bg7 {[%emt 0:00:42]} 6. Bd3 {[%emt 0:00:44]} O-O {[%emt 0:06:19]} 7. h3 {[%emt 0:00:57]} c5 {[%emt 0:02:06]} 8. c3 {[%emt 0:00:24]} Nc6 {[%emt 0:00:09]} 9. Qe2 {[%emt 0:01:48]} Nd7 {[%emt 0:06:59]} 10. h4 {[%emt 0:01:15]} e5 {[%emt 0:04:59]} 11. dxe5 {[%emt 0:00:09]} Ndxe5 {[%emt 0:00:05]} 12. Nxe5 {[%emt 0:00:07]} Nxe5 {[%emt 0:00:03]} 13. Bxe5 {[%emt 0:00:35]} Bxe5 {[%emt 0:00:05]} 14. h5 {[%emt 0:00:13]} Bg7 {[%emt 0:01:08]} 15. hxg6 {[%emt 0:02:09]} hxg6 {[%emt 0:02:15]} 16. O-O-O {[%emt 0:01:15]} b5 {[%emt 0:04:12]} 17. Kb1 {[%emt 0:01:24]} c4 {[%emt 0:09:58]} 18. Bc2 {[%emt 0:02:37]} b4 {[%emt 0:00:07]} 19. Qf3 {[%emt 0:06:25]} Qb6 {[%emt 0:09:59]} 20. Qxd5 {[%emt 0:08:49]} Be6 {[%emt 0:01:18]} 21. Nxc4 {[%emt 0:00:58]} Qa6 {[%emt 0:03:02]} 22. Qa5 {[%emt 0:00:42]} Qxc4 {[%emt 0:00:24]} 23. cxb4 {[%emt 0:01:24]} Rab8 {[%emt 0:00:33]} 24. Bd3 {[%emt 0:00:35]} Qxb4 {[%emt 0:00:25]} 25. Qxb4 {[%emt 0:00:04]} Rxb4 {[%emt 0:00:03]} 1/2-1/2

[Event "12th KIIT International 2019"]
[Site "Odisha"]
[Date "2019.06.07"]
[Round "10.2"]
[White "Petrosyan, Manuel"]
[Black "Amonatov, Farrukh"]
[Result "1/2-1/2"]
[ECO "E94"]
[WhiteElo "2573"]
[BlackElo "2624"]
[Annotator "ChessBase"]
[PlyCount "105"]
[EventDate "2019.05.31"]
[EventType "swiss"]
[EventCountry "IND"]
[SourceTitle "playchess.com"]
[Source "ChessBase"]
[SourceQuality "1"]
[TimeControl "5400+30"]

1. d4 {[%emt 1:30:30]} Nf6 {[%emt 0:03:58]} 2. c4 {[%emt 0:00:00]} g6 {[%emt 0:00:07]} 3. Nc3 {[%emt 0:00:00]} Bg7 {[%emt 0:00:03]} 4. e4 {[%emt 0:00:00]} d6 {[%emt 0:00:04]} 5. Nf3 {[%emt 0:00:00]} O-O {[%emt 0:00:07]} 6. Be2 {[%emt 0:00:00]} e5 {[%emt 0:00:04]} 7. O-O {[%emt 0:00:00]} Nbd7 {[%emt 0:01:13]} 8. Be3 {[%emt 0:00:00]} Ng4 {[%emt 0:00:05]} 9. Bg5 {[%emt 0:00:00]} f6 {[%emt 0:00:05]} 10. Bh4 {[%emt 0:00:00]} Nh6 {[%emt 0:00:10]} 11. dxe5 {[%emt 0:00:00]} dxe5 {[%emt 0:00:58]} 12. b4 {[%emt 0:00:00]} c6 {[%emt 0:04:23]} 13. Qb3 {[%emt 0:00:00]} Nf7 {[%emt 0:00:21]} 14. c5 {[%emt 0:00:00]} Qe7 {[%emt 0:00:57]} 15. Rad1 {[%emt 0:00:00]} Re8 {[%emt 0:01:01]} 16. Bc4 {[%emt 0:00:00]} a5 {[%emt 0:11:18]} 17. a3 {[%emt 0:00:00]} axb4 {[%emt 0:01:15]} 18. axb4 {[%emt 0:00:00]} b5 {[%emt 0:00:05]} 19. cxb6 {[%emt 0:00:00]} Nxb6 {[%emt 0:00:58]} 20. Nxe5 {[%emt 0:00:00]} Nxc4 {[%emt 0:00:24]} 21. Nxc6 {[%emt 0:00:00]} Qe6 {[%emt 0:00:43]} 22. Nd4 {[%emt 0:00:00]} Qg4 {[%emt 0:00:16]} 23. Bg3 {[%emt 0:00:00]} Ba6 {[%emt 0:34:20]} 24. Rfe1 {[%emt 0:00:00]} Nce5 {[%emt 0:13:31]} 25. b5 {[%emt 0:00:00]} Bb7 {[%emt 0:01:17]} 26. Nd5 {[%emt 0:00:00]} Bxd5 {[%emt 0:12:52]} 27. exd5 {[%emt 0:00:00]} Nd6 {[%emt 0:00:32]} 28. f3 {[%emt 0:00:00]} Qd7 {[%emt 0:00:09]} 29. Nc6 {[%emt 0:00:00]} h5 {[%emt 0:02:25]} 30. b6 {[%emt 0:00:00]} Kh7 {[%emt 0:00:11]} 31. Rc1 {[%emt 0:00:00]} Rac8 {[%emt 0:03:03]} 32. Bxe5 {[%emt 0:00:18]} fxe5 {[%emt 0:00:05]} 33. Ra1 {[%emt 0:00:03]} Qf7 {[%emt 0:05:51]} 34. Ra7 {[%emt 0:01:18]} Nb7 {[%emt 0:00:04]} 35. Qc4 {[%emt 0:04:46]} Ra8 {[%emt 0:02:08]} 36. Qa6 {[%emt 0:02:42]} Rxa7 {[%emt 0:01:42]} 37. bxa7 {[%emt 0:00:13]} Nc5 {[%emt 0:00:32]} 38. Qc4 {[%emt 0:00:59]} Bf8 {[%emt 0:00:26]} 39. Rb1 {[%emt 0:02:11]} e4 {[%emt 0:01:06]} 40. Rb8 {[%emt 0:00:04]} exf3 {[%emt 0:00:10]} 41. gxf3 {[%emt 0:00:07]} Qxf3 {[%emt 0:00:57]} 42. Rxe8 {[%emt 0:00:41]} Nd3 {[%emt 0:00:01]} 43. Rxf8 {[%emt 0:00:43]} Qe3+ {[%emt 0:00:09]} 44. Kg2 {[%emt 0:00:18]} Qe2+ {[%emt 0:00:09]} 45. Kg3 {[%emt 0:00:27]} g5 {[%emt 0:01:23]} 46. Rh8+ {[%emt 0:03:04]} Kxh8 {[%emt 0:00:06]} 47. a8=Q+ {[%emt 0:00:05]} Kh7 {[%emt 0:00:05]} 48. Qf8 {[%emt 0:04:40]} Qe1+ {[%emt 0:01:32]} 49. Kg2 {[%emt 0:00:08]} Qe2+ {[%emt 0:00:05]} 50. Kg1 {[%emt 0:00:11]} Qe3+ {[%emt 0:00:07]} 51. Kf1 {[%emt 0:00:56]} Qe1+ {[%emt 0:00:07]} 52. Kg2 {[%emt 0:00:01]} Qe2+ {[%emt 0:00:15]} 53. Kg3 {[%emt 0:01:42]} 1/2-1/2